[Event "*** Titled Tuesday Blitz"]
[Site "Chess.com"]
[Date "2018.06.05"]
[Round "8"]
[White "GGX0X0"]
[Black "ehrenfeld"]
[Result "0-1"]
[WhiteElo "2315"]
[BlackElo "2456"]
[TimeControl "180+2"]
[EndTime "14:59:03 PDT"]
[Termination "ehrenfeld won by resignation"]

1. e4 {[%clk 0:03:01.9]} 1... e5 {[%clk 0:02:58.1]} 2. Nf3 {[%clk 0:03:02.3]}
2... Nc6 {[%clk 0:02:58.9]} 3. Bc4 {[%clk 0:03:03.2]} 3... Nf6 {[%clk
0:02:59.3]} 4. d3 {[%clk 0:02:54.2]} 4... Be7 {[%clk 0:02:59.6]} 5. O-O {[%clk
0:02:51]} 5... O-O {[%clk 0:03:00.1]} 6. Re1 {[%clk 0:02:51.2]} 6... d6 {[%clk
0:02:59.8]} 7. a4 {[%clk 0:02:52.3]} 7... Na5 {[%clk 0:02:46.7]} 8. Ba2 {[%clk
0:02:51.1]} 8... c5 {[%clk 0:02:45.6]} 9. c3 {[%clk 0:02:46.7]} 9... Nc6 {[%clk
0:02:36.7]} 10. h3 {[%clk 0:02:45.4]} 10... Be6 {[%clk 0:02:34]} 11. Na3 {[%clk
0:02:28.9]} 11... h6 {[%clk 0:02:18.1]} 12. Bxe6 {[%clk 0:02:17.3]} 12... fxe6
{[%clk 0:02:18.4]} 13. d4 {[%clk 0:02:18.8]} 13... cxd4 {[%clk 0:02:17.2]} 14.
cxd4 {[%clk 0:02:20.7]} 14... exd4 {[%clk 0:02:16.3]} 15. Nxd4 {[%clk
0:02:22.6]} 15... Nxd4 {[%clk 0:02:16.6]} 16. Qxd4 {[%clk 0:02:23.4]} 16... d5
{[%clk 0:02:15.6]} 17. exd5 {[%clk 0:02:20]} 17... exd5 {[%clk 0:02:16.2]} 18.
Be3 {[%clk 0:02:09.8]} 18... Qd7 {[%clk 0:01:48.8]} 19. Nb5 {[%clk 0:02:03.4]}
19... a6 {[%clk 0:01:48.9]} 20. Nc3 {[%clk 0:02:04.1]} 20... Rad8 {[%clk
0:01:23.7]} 21. Rad1 {[%clk 0:02:02.2]} 21... Qc7 {[%clk 0:01:18.5]} 22. Qa7
{[%clk 0:01:39.7]} 22... Rd7 {[%clk 0:01:11.7]} 23. Qb6 {[%clk 0:01:30.9]} 23...
Qxb6 {[%clk 0:01:07.7]} 24. Bxb6 {[%clk 0:01:32.8]} 24... Bb4 {[%clk 0:01:08.2]}
25. Re2 {[%clk 0:01:23.2]} 25... Bxc3 {[%clk 0:01:07.6]} 26. bxc3 {[%clk
0:01:23.9]} 26... Rc8 {[%clk 0:01:08.6]} 27. Bd4 {[%clk 0:01:22.7]} 27... Kf7
{[%clk 0:01:07.8]} 28. f3 {[%clk 0:01:22.7]} 28... Ne8 {[%clk 0:01:05.3]} 29.
Rb1 {[%clk 0:01:17.8]} 29... Nd6 {[%clk 0:01:03.4]} 30. Re5 {[%clk 0:01:17.9]}
30... Nc4 {[%clk 0:01:02]} 31. Re2 {[%clk 0:01:10.7]} 31... Re8 {[%clk
0:00:58.9]} 32. Kf2 {[%clk 0:01:06.4]} 32... Rxe2+ {[%clk 0:00:58.9]} 33. Kxe2
{[%clk 0:01:08.3]} 33... Ke6 {[%clk 0:00:57.7]} 34. Kd3 {[%clk 0:01:08.2]} 34...
Kd6 {[%clk 0:00:57.9]} 35. f4 {[%clk 0:00:35.3]} 35... Re7 {[%clk 0:00:57.3]}
36. g3 {[%clk 0:00:33.1]} 36... g6 {[%clk 0:00:57.5]} 37. g4 {[%clk 0:00:26]}
37... Rf7 {[%clk 0:00:49.5]} 38. f5 {[%clk 0:00:26.9]} 38... gxf5 {[%clk
0:00:49.8]} 39. gxf5 {[%clk 0:00:28.8]} 39... Rxf5 {[%clk 0:00:48.1]} 40. Rxb7
{[%clk 0:00:30.3]} 40... Rf3+ {[%clk 0:00:46.2]} 41. Ke2 {[%clk 0:00:31.3]}
41... Rxh3 {[%clk 0:00:46.4]} 42. Ra7 {[%clk 0:00:26.4]} 42... a5 {[%clk
0:00:46.6]} 43. Ra6+ {[%clk 0:00:22.2]} 43... Kd7 {[%clk 0:00:46.9]} 44. Ra7+
{[%clk 0:00:23.2]} 44... Ke6 {[%clk 0:00:46.7]} 45. Ra6+ {[%clk 0:00:24.2]}
45... Kf5 {[%clk 0:00:47.3]} 46. Rf6+ {[%clk 0:00:23.1]} 46... Ke4 {[%clk
0:00:45.5]} 47. Re6+ {[%clk 0:00:23.9]} 47... Kf4 {[%clk 0:00:46.6]} 48. Rf6+
{[%clk 0:00:24.6]} 48... Kg5 {[%clk 0:00:46]} 49. Rf8 {[%clk 0:00:20.9]} 49...
Rh2+ {[%clk 0:00:39.2]} 50. Kf3 {[%clk 0:00:21.2]} 50... Ra2 {[%clk 0:00:37.8]}
51. Rd8 {[%clk 0:00:18.7]} 51... Nd2+ {[%clk 0:00:35.5]} 52. Ke3 {[%clk
0:00:18.5]} 52... Nf1+ {[%clk 0:00:35.2]} 53. Kf3 {[%clk 0:00:19.1]} 53... Nh2+
{[%clk 0:00:35.7]} 54. Kg3 {[%clk 0:00:19.6]} 54... Nf1+ {[%clk 0:00:33.1]} 55.
Kf3 {[%clk 0:00:20.8]} 55... Nd2+ {[%clk 0:00:28.1]} 56. Ke3 {[%clk 0:00:21.6]}
56... Nb3 {[%clk 0:00:24.2]} 57. Rxd5+ {[%clk 0:00:21.4]} 57... Kg4 {[%clk
0:00:25.4]} 58. Rb5 {[%clk 0:00:21.5]} 58... Nxd4 {[%clk 0:00:24.6]} 59. cxd4
{[%clk 0:00:21.2]} 59... Rxa4 {[%clk 0:00:24.9]} 60. Rb6 {[%clk 0:00:22.3]}
60... h5 {[%clk 0:00:24.1]} 61. Rg6+ {[%clk 0:00:23.3]} 61... Kf5 {[%clk
0:00:24.4]} 62. Rg8 {[%clk 0:00:24.6]} 62... h4 {[%clk 0:00:24.2]} 63. Rh8
{[%clk 0:00:25]} 63... h3 {[%clk 0:00:23.8]} 64. d5 {[%clk 0:00:25.2]} 64... Ke5
{[%clk 0:00:23.9]} 65. Rh5+ {[%clk 0:00:25.6]} 65... Kd6 {[%clk 0:00:24.3]} 66.
Kd2 {[%clk 0:00:26.6]} 66... Ra3 {[%clk 0:00:25.2]} 67. Kc2 {[%clk 0:00:27.1]}
67... a4 {[%clk 0:00:25.8]} 68. Kb2 {[%clk 0:00:28.1]} 68... Rd3 {[%clk
0:00:25.9]} 69. Rh4 {[%clk 0:00:27.7]} 69... a3+ {[%clk 0:00:26.2]} 70. Ka2
{[%clk 0:00:27.7]} 70... Kxd5 {[%clk 0:00:27]} 71. Rh8 {[%clk 0:00:29.3]} 71...
Ke5 {[%clk 0:00:27.7]} 72. Re8+ {[%clk 0:00:30.5]} 72... Kf4 {[%clk 0:00:28.5]}
73. Rg8 {[%clk 0:00:32.1]} 73... h2 {[%clk 0:00:28]} 74. Rh8 {[%clk 0:00:33]}
74... Rd2+ {[%clk 0:00:28.8]} 75. Kxa3 {[%clk 0:00:34.4]} 75... Kf3 {[%clk
0:00:30.1]} 76. Kb3 {[%clk 0:00:35.5]} 76... Kg2 {[%clk 0:00:30.9]} 77. Rg8+
{[%clk 0:00:36.2]} 77... Kf1 {[%clk 0:00:30.4]} 78. Rh8 {[%clk 0:00:37]} 78...
Kg1 {[%clk 0:00:31.3]} 79. Kc3 {[%clk 0:00:32.7]} 79... Rg2 {[%clk 0:00:31.8]}
80. Ra8 {[%clk 0:00:29.1]} 80... h1=Q {[%clk 0:00:32.2]} 81. Ra1+ {[%clk
0:00:29.8]} 81... Kh2 {[%clk 0:00:32.9]} 0-1

[Event "*** Titled Tuesday Blitz"]
[Site "Chess.com"]
[Date "2018.06.05"]
[Round "8"]
[White "EmreDedebas"]
[Black "1stSecond"]
[Result "0-1"]
[WhiteElo "2379"]
[BlackElo "2610"]
[TimeControl "180+2"]
[EndTime "14:59:30 PDT"]
[Termination "1stSecond won by resignation"]

1. d4 {[%clk 0:02:59.8]} 1... Nf6 {[%clk 0:02:59.4]} 2. c4 {[%clk 0:02:59.2]}
2... e6 {[%clk 0:02:57.6]} 3. Nf3 {[%clk 0:02:59.2]} 3... b6 {[%clk 0:02:58.3]}
4. g3 {[%clk 0:02:58.7]} 4... Bb7 {[%clk 0:02:58.9]} 5. Bg2 {[%clk 0:02:58.7]}
5... Bb4+ {[%clk 0:02:59.9]} 6. Bd2 {[%clk 0:02:54.1]} 6... a5 {[%clk
0:02:47.8]} 7. O-O {[%clk 0:02:52.7]} 7... O-O {[%clk 0:02:48.4]} 8. Nc3 {[%clk
0:02:41.6]} 8... d6 {[%clk 0:02:47]} 9. Qc2 {[%clk 0:02:36.9]} 9... Bxc3 {[%clk
0:02:43.3]} 10. Bxc3 {[%clk 0:02:37.1]} 10... Be4 {[%clk 0:02:44.2]} 11. Qd2
{[%clk 0:02:33.3]} 11... Nbd7 {[%clk 0:02:45.1]} 12. Rfd1 {[%clk 0:02:33.3]}
12... Qb8 {[%clk 0:02:44.9]} 13. Bf1 {[%clk 0:02:31.9]} 13... b5 {[%clk
0:02:41.7]} 14. cxb5 {[%clk 0:02:23.3]} 14... Qxb5 {[%clk 0:02:43.6]} 15. e3
{[%clk 0:02:20.8]} 15... Qh5 {[%clk 0:02:19.4]} 16. Ne1 {[%clk 0:02:17.9]} 16...
Nb6 {[%clk 0:02:14]} 17. Qe2 {[%clk 0:02:12.5]} 17... Qxe2 {[%clk 0:01:52.1]}
18. Bxe2 {[%clk 0:02:14.4]} 18... Nfd5 {[%clk 0:01:53.6]} 19. Bd2 {[%clk
0:02:13.5]} 19... Bg6 {[%clk 0:01:40.5]} 20. Rdc1 {[%clk 0:01:59.1]} 20... a4
{[%clk 0:01:34.4]} 21. Nd3 {[%clk 0:01:52.1]} 21... a3 {[%clk 0:01:25.9]} 22. b3
{[%clk 0:01:45.2]} 22... Rfb8 {[%clk 0:01:24.5]} 23. f3 {[%clk 0:01:43.6]} 23...
f5 {[%clk 0:01:23.6]} 24. Kf2 {[%clk 0:01:41.5]} 24... Kf7 {[%clk 0:01:20.5]}
25. Rc2 {[%clk 0:01:34.5]} 25... Ke7 {[%clk 0:01:21.6]} 26. Rac1 {[%clk
0:01:32.5]} 26... Kd7 {[%clk 0:01:21.7]} 27. Nb4 {[%clk 0:01:29.7]} 27... Rb7
{[%clk 0:00:56.4]} 28. Nxd5 {[%clk 0:01:13.8]} 28... Nxd5 {[%clk 0:00:57]} 29.
Bc4 {[%clk 0:01:12.7]} 29... Nf6 {[%clk 0:00:54]} 30. Ke2 {[%clk 0:01:08.6]}
30... Bh5 {[%clk 0:00:54.2]} 31. h3 {[%clk 0:01:07]} 31... h6 {[%clk 0:00:45.6]}
32. g4 {[%clk 0:01:07.2]} 32... Be8 {[%clk 0:00:43.8]} 33. Bd3 {[%clk
0:01:08.1]} 33... g6 {[%clk 0:00:33.5]} 34. Rg1 {[%clk 0:00:56.8]} 34... Ke7
{[%clk 0:00:32.6]} 35. Rgc1 {[%clk 0:00:52.4]} 35... Kd7 {[%clk 0:00:29.5]} 36.
Rg1 {[%clk 0:00:53.5]} 36... Bf7 {[%clk 0:00:29.6]} 37. h4 {[%clk 0:00:31.7]}
37... Re8 {[%clk 0:00:28]} 38. g5 {[%clk 0:00:31.2]} 38... hxg5 {[%clk
0:00:29.9]} 39. hxg5 {[%clk 0:00:32.8]} 39... Nh5 {[%clk 0:00:31.1]} 40. f4
{[%clk 0:00:33.2]} 40... e5 {[%clk 0:00:32.6]} 41. dxe5 {[%clk 0:00:29.4]} 41...
dxe5 {[%clk 0:00:34.5]} 42. Kf2 {[%clk 0:00:30.8]} 42... exf4 {[%clk 0:00:26.8]}
43. exf4 {[%clk 0:00:32.7]} 43... Bd5 {[%clk 0:00:28.2]} 44. Be2 {[%clk
0:00:30.8]} 44... Ng7 {[%clk 0:00:24.2]} 45. Bc1 {[%clk 0:00:28.3]} 45... Ne6
{[%clk 0:00:22.8]} 46. Rd1 {[%clk 0:00:17.3]} 46... c6 {[%clk 0:00:24.2]} 47.
Bf3 {[%clk 0:00:17.2]} 47... Rb5 {[%clk 0:00:25.2]} 48. Kg3 {[%clk 0:00:16.8]}
48... Ra8 {[%clk 0:00:22]} 49. Be3 {[%clk 0:00:11.6]} 49... Nc7 {[%clk
0:00:21.2]} 50. Bd4 {[%clk 0:00:11.2]} 50... Ra6 {[%clk 0:00:17]} 51. Be5 {[%clk
0:00:12.3]} 51... Ra7 {[%clk 0:00:11.7]} 52. Rcd2 {[%clk 0:00:05.6]} 52... Raa5
{[%clk 0:00:10.9]} 53. Rc2 {[%clk 0:00:05.7]} 53... Ne6 {[%clk 0:00:11.4]} 54.
Rcd2 {[%clk 0:00:04.7]} 54... Ke7 {[%clk 0:00:12.1]} 55. Rh1 {[%clk 0:00:04.4]}
55... Nf8 {[%clk 0:00:12.3]} 56. Rh8 {[%clk 0:00:02.9]} 56... Bxf3 {[%clk
0:00:12.5]} 57. Kxf3 {[%clk 0:00:04]} 57... Rd5 {[%clk 0:00:13.8]} 58. Re2
{[%clk 0:00:04.7]} 58... Kf7 {[%clk 0:00:12.9]} 59. Bf6 {[%clk 0:00:05.2]} 59...
Rd3+ {[%clk 0:00:12.7]} 60. Kf2 {[%clk 0:00:05.8]} 60... Ra7 {[%clk 0:00:14.2]}
61. Rc2 {[%clk 0:00:05.4]} 61... Rad7 {[%clk 0:00:11.7]} 62. Rxc6 {[%clk
0:00:04.3]} 62... Rd2+ {[%clk 0:00:12.3]} 63. Ke1 {[%clk 0:00:04.3]} 63... Rd1+
{[%clk 0:00:08.5]} 64. Ke2 {[%clk 0:00:05.4]} 64... R7d2+ {[%clk 0:00:09.7]} 65.
Ke3 {[%clk 0:00:06.9]} 65... Rxa2 {[%clk 0:00:07.8]} 66. Rc8 {[%clk 0:00:06.7]}
66... Nd7 {[%clk 0:00:06.4]} 67. Rh7+ {[%clk 0:00:06.5]} 67... Ke6 {[%clk
0:00:08]} 68. Re7+ {[%clk 0:00:03.2]} 68... Kd6 {[%clk 0:00:09.2]} 69. Rd8
{[%clk 0:00:04.1]} 69... Kc6 {[%clk 0:00:10.4]} 70. Rc8+ {[%clk 0:00:04.6]}
70... Kb7 {[%clk 0:00:10.5]} 71. Rc4 {[%clk 0:00:03.1]} 71... Rh2 {[%clk
0:00:09.4]} 72. Rb4+ {[%clk 0:00:03.8]} 72... Kc6 {[%clk 0:00:09.9]} 73. Rc4+
{[%clk 0:00:05]} 73... Kd6 {[%clk 0:00:11.3]} 74. Kf3 {[%clk 0:00:04.5]} 74...
Rd3+ {[%clk 0:00:11.6]} 75. Re3 {[%clk 0:00:03.7]} 75... Rh3+ {[%clk 0:00:13.5]}
0-1

[Event "*** Titled Tuesday Blitz"]
[Site "Chess.com"]
[Date "2018.06.05"]
[Round "8"]
[White "mishanick"]
[Black "Ar4uha"]
[Result "1-0"]
[WhiteElo "2832"]
[BlackElo "2587"]
[TimeControl "180+2"]
[EndTime "15:00:02 PDT"]
[Termination "mishanick won on time"]

1. d4 {[%clk 0:01:31]} 1... Nf6 {[%clk 0:02:59.8]} 2. c4 {[%clk 0:01:32.5]} 2...
e6 {[%clk 0:03:01.1]} 3. Nf3 {[%clk 0:01:33.8]} 3... b6 {[%clk 0:03:01.9]} 4. g3
{[%clk 0:01:34.2]} 4... Ba6 {[%clk 0:03:02.7]} 5. Qc2 {[%clk 0:01:35]} 5... d5
{[%clk 0:03:01.6]} 6. cxd5 {[%clk 0:01:34.8]} 6... exd5 {[%clk 0:03:02]} 7. Bg2
{[%clk 0:01:36.2]} 7... Bb4+ {[%clk 0:03:02.9]} 8. Bd2 {[%clk 0:01:36.6]} 8...
Bd6 {[%clk 0:03:03.5]} 9. Nc3 {[%clk 0:01:35.9]} 9... O-O {[%clk 0:03:03.2]} 10.
O-O {[%clk 0:01:37.3]} 10... Re8 {[%clk 0:03:04.6]} 11. Rfe1 {[%clk 0:01:37.2]}
11... Nbd7 {[%clk 0:03:02.8]} 12. Bf4 {[%clk 0:01:36.4]} 12... Bxf4 {[%clk
0:02:58.5]} 13. gxf4 {[%clk 0:01:38.3]} 13... c5 {[%clk 0:02:58.6]} 14. Rad1
{[%clk 0:01:36.2]} 14... cxd4 {[%clk 0:02:55.6]} 15. Nxd4 {[%clk 0:01:36.3]}
15... Bb7 {[%clk 0:02:52.7]} 16. e3 {[%clk 0:01:35.2]} 16... Qe7 {[%clk
0:02:49.8]} 17. Qb3 {[%clk 0:01:29.3]} 17... Nc5 {[%clk 0:02:50.5]} 18. Qa3
{[%clk 0:01:29.6]} 18... g6 {[%clk 0:02:46.2]} 19. Ncb5 {[%clk 0:01:26.7]} 19...
a6 {[%clk 0:02:43.2]} 20. Nc3 {[%clk 0:01:25.8]} 20... b5 {[%clk 0:02:38.7]} 21.
Nde2 {[%clk 0:01:16.1]} 21... Red8 {[%clk 0:02:37.5]} 22. Qb4 {[%clk 0:01:10]}
22... Rac8 {[%clk 0:02:28.3]} 23. Nd4 {[%clk 0:01:07.9]} 23... Qc7 {[%clk
0:02:21.3]} 24. Nb3 {[%clk 0:01:07.7]} 24... Nxb3 {[%clk 0:01:59.1]} 25. Qxb3
{[%clk 0:01:09.6]} 25... d4 {[%clk 0:01:56.1]} 26. Bxb7 {[%clk 0:01:02.7]} 26...
Qxb7 {[%clk 0:01:58]} 27. exd4 {[%clk 0:01:01.1]} 27... Qf3 {[%clk 0:01:58.7]}
28. Ne4 {[%clk 0:00:53.8]} 28... Qxf4 {[%clk 0:01:46.6]} 29. Nxf6+ {[%clk
0:00:39.5]} 29... Qxf6 {[%clk 0:01:47.3]} 30. d5 {[%clk 0:00:41.1]} 30... Rc5
{[%clk 0:01:44.6]} 31. Re3 {[%clk 0:00:39.2]} 31... Rc4 {[%clk 0:01:19.2]} 32.
Qd3 {[%clk 0:00:35.6]} 32... Rd6 {[%clk 0:01:09.5]} 33. b3 {[%clk 0:00:33]}
33... Rg4+ {[%clk 0:01:08.7]} 34. Rg3 {[%clk 0:00:31.3]} 34... Rf4 {[%clk
0:01:09.3]} 35. Qe2 {[%clk 0:00:26.8]} 35... h5 {[%clk 0:01:09]} 36. Rgd3 {[%clk
0:00:26.2]} 36... h4 {[%clk 0:01:08]} 37. f3 {[%clk 0:00:26.8]} 37... Rf5 {[%clk
0:01:05]} 38. Qe4 {[%clk 0:00:25.8]} 38... Re5 {[%clk 0:01:02.6]} 39. Qd4 {[%clk
0:00:26]} 39... Qg5+ {[%clk 0:01:02.7]} 40. Kf2 {[%clk 0:00:24.8]} 40... Rf5
{[%clk 0:00:41.4]} 41. Qe4 {[%clk 0:00:20.8]} 41... Re5 {[%clk 0:00:39]} 42. Qg4
{[%clk 0:00:21.5]} 42... Qf6 {[%clk 0:00:39.8]} 43. Rd4 {[%clk 0:00:21]} 43...
Rg5 {[%clk 0:00:38.5]} 44. Qxh4 {[%clk 0:00:18.9]} 44... Kg7 {[%clk 0:00:34.8]}
45. R1d2 {[%clk 0:00:18.4]} 45... Qf5 {[%clk 0:00:29.1]} 46. Qe4 {[%clk
0:00:17.3]} 46... Qh3 {[%clk 0:00:28.9]} 47. Qf4 {[%clk 0:00:16.4]} 47... Rg2+
{[%clk 0:00:28.6]} 48. Ke3 {[%clk 0:00:17.8]} 48... Rf6 {[%clk 0:00:29.8]} 49.
Qe4 {[%clk 0:00:15.2]} 49... Rg1 {[%clk 0:00:26.3]} 50. Re2 {[%clk 0:00:11.5]}
50... Qf1 {[%clk 0:00:20.5]} 51. d6 {[%clk 0:00:11.5]} 51... Re6 {[%clk
0:00:20.8]} 52. Qxe6 {[%clk 0:00:11.5]} 52... fxe6 {[%clk 0:00:22.7]} 53. d7
{[%clk 0:00:13.1]} 53... Qc1+ {[%clk 0:00:24]} 54. Rdd2 {[%clk 0:00:14]} 54...
Qc5+ {[%clk 0:00:22.9]} 55. Rd4 {[%clk 0:00:10.7]} 55... Qc3+ {[%clk 0:00:21.2]}
56. Rd3 {[%clk 0:00:11.5]} 56... Qe5+ {[%clk 0:00:21.9]} 57. Kd2 {[%clk
0:00:10.9]} 57... Qb2+ {[%clk 0:00:23]} 58. Ke3 {[%clk 0:00:12.4]} 58... Qe5+
{[%clk 0:00:23.8]} 59. Kd2 {[%clk 0:00:11.8]} 59... Qb2+ {[%clk 0:00:24.8]} 60.
Ke3 {[%clk 0:00:13.1]} 60... Qc1+ {[%clk 0:00:26]} 61. Kf2 {[%clk 0:00:07.2]}
61... Rf1+ {[%clk 0:00:23.9]} 62. Kg2 {[%clk 0:00:08.4]} 62... Rg1+ {[%clk
0:00:23.3]} 63. Kf2 {[%clk 0:00:09.6]} 63... Rg5 {[%clk 0:00:21.3]} 64. f4
{[%clk 0:00:06.6]} 64... Qg1+ {[%clk 0:00:21.3]} 65. Kf3 {[%clk 0:00:08]} 65...
Qf1+ {[%clk 0:00:20.2]} 66. Ke3 {[%clk 0:00:09.3]} 66... Qg1+ {[%clk 0:00:20.5]}
67. Kd2 {[%clk 0:00:10.5]} 67... Rc5 {[%clk 0:00:21.9]} 68. Re1 {[%clk 0:00:11]}
68... Qf2+ {[%clk 0:00:22.4]} 69. Re2 {[%clk 0:00:10.3]} 69... Qxf4+ {[%clk
0:00:23.3]} 70. Ree3 {[%clk 0:00:11.1]} 70... Qf2+ {[%clk 0:00:22.9]} 71. Re2
{[%clk 0:00:12.3]} 71... Qf4+ {[%clk 0:00:23.2]} 72. Ree3 {[%clk 0:00:13.5]}
72... Qxh2+ {[%clk 0:00:24.2]} 73. Re2 {[%clk 0:00:14.7]} 73... Qf4+ {[%clk
0:00:24.3]} 74. Ree3 {[%clk 0:00:16.2]} 74... Qf2+ {[%clk 0:00:23.3]} 75. Re2
{[%clk 0:00:17.5]} 75... Qf4+ {[%clk 0:00:23.7]} 76. Ree3 {[%clk 0:00:18.3]}
76... Qb4+ {[%clk 0:00:19.6]} 77. Kd1 {[%clk 0:00:18]} 77... Qg4+ {[%clk
0:00:12.8]} 78. Kd2 {[%clk 0:00:19.3]} 78... Qb4+ {[%clk 0:00:11.1]} 79. Ke2
{[%clk 0:00:17.8]} 79... Rc2+ {[%clk 0:00:10]} 80. Kd1 {[%clk 0:00:18.7]} 80...
Qc5 {[%clk 0:00:02.6]} 81. d8=Q {[%clk 0:00:19.1]} 81... Rc1+ {[%clk 0:00:03.8]}
82. Ke2 {[%clk 0:00:20.7]} 82... Qg5 {[%clk 0:00:05]} 83. Qxg5 {[%clk
0:00:20.8]} 1-0

[Event "*** Titled Tuesday Blitz"]
[Site "Chess.com"]
[Date "2018.06.05"]
[Round "8"]
[White "Keaton87"]
[Black "Arystanner23"]
[Result "1-0"]
[WhiteElo "2483"]
[BlackElo "2615"]
[TimeControl "180+2"]
[EndTime "15:00:15 PDT"]
[Termination "Keaton87 won by resignation"]

1. d4 {[%clk 0:03:01.9]} 1... Nf6 {[%clk 0:03:01]} 2. Nf3 {[%clk 0:03:01.5]}
2... e6 {[%clk 0:03:02.2]} 3. e3 {[%clk 0:02:59.6]} 3... c5 {[%clk 0:03:01.6]}
4. Bd3 {[%clk 0:02:59.7]} 4... b6 {[%clk 0:03:01.7]} 5. O-O {[%clk 0:03:00.5]}
5... Bb7 {[%clk 0:03:03.1]} 6. c4 {[%clk 0:03:01.1]} 6... Be7 {[%clk 0:03:04.5]}
7. Nc3 {[%clk 0:03:02.3]} 7... O-O {[%clk 0:03:05.3]} 8. d5 {[%clk 0:03:03.7]}
8... exd5 {[%clk 0:03:01.9]} 9. cxd5 {[%clk 0:03:04.5]} 9... a6 {[%clk
0:03:01.5]} 10. e4 {[%clk 0:03:01.6]} 10... d6 {[%clk 0:03:02.4]} 11. a4 {[%clk
0:03:02.3]} 11... Nbd7 {[%clk 0:03:03.7]} 12. h3 {[%clk 0:03:02.3]} 12... Rc8
{[%clk 0:03:03.6]} 13. Bf4 {[%clk 0:03:03]} 13... c4 {[%clk 0:03:01]} 14. Bc2
{[%clk 0:03:03.7]} 14... Nc5 {[%clk 0:03:01.6]} 15. Re1 {[%clk 0:02:59.5]} 15...
Re8 {[%clk 0:02:56.2]} 16. Qd4 {[%clk 0:02:56.5]} 16... Nfd7 {[%clk 0:02:39.6]}
17. Qxc4 {[%clk 0:02:30.6]} 17... Ne6 {[%clk 0:02:39.5]} 18. Qxc8 {[%clk
0:02:30.2]} 18... Qxc8 {[%clk 0:02:38]} 19. dxe6 {[%clk 0:02:31.4]} 19... fxe6
{[%clk 0:02:39.3]} 20. Bb3 {[%clk 0:02:31.4]} 20... Nc5 {[%clk 0:02:40.3]} 21.
Ba2 {[%clk 0:02:29.8]} 21... Kh8 {[%clk 0:02:30.7]} 22. Rad1 {[%clk 0:02:28]}
22... e5 {[%clk 0:02:29.9]} 23. Bg5 {[%clk 0:02:21.8]} 23... Qc7 {[%clk
0:02:27.4]} 24. Nd5 {[%clk 0:02:16.9]} 24... Bxd5 {[%clk 0:02:27.5]} 25. Bxd5
{[%clk 0:02:17.8]} 25... h6 {[%clk 0:02:20]} 26. Be3 {[%clk 0:02:11.2]} 26... a5
{[%clk 0:02:14.8]} 27. Rc1 {[%clk 0:02:08.4]} 27... Qd7 {[%clk 0:02:12]} 28.
Bxc5 {[%clk 0:02:08.4]} 28... bxc5 {[%clk 0:02:11.8]} 29. b3 {[%clk 0:02:09.3]}
29... Rf8 {[%clk 0:02:10.5]} 30. Rc3 {[%clk 0:02:08.5]} 30... Qa7 {[%clk
0:02:07.6]} 31. Bc4 {[%clk 0:02:05.5]} 31... Qb6 {[%clk 0:02:02.3]} 32. Rd3
{[%clk 0:02:05.2]} 32... Qb4 {[%clk 0:01:59]} 33. Red1 {[%clk 0:02:05.3]} 33...
Qa3 {[%clk 0:01:54.5]} 34. Nh2 {[%clk 0:02:03]} 34... Bg5 {[%clk 0:01:50.7]} 35.
Nf3 {[%clk 0:02:00.4]} 35... Be7 {[%clk 0:01:36.9]} 36. g3 {[%clk 0:02:01.2]}
36... Qb4 {[%clk 0:01:31.8]} 37. Kg2 {[%clk 0:02:02.1]} 37... Qb7 {[%clk
0:01:26.6]} 38. Bd5 {[%clk 0:01:56.9]} 38... Qc8 {[%clk 0:01:23.7]} 39. Nh2
{[%clk 0:01:55.5]} 39... h5 {[%clk 0:01:07.7]} 40. Bc4 {[%clk 0:01:47.9]} 40...
g6 {[%clk 0:01:02.4]} 41. Rc3 {[%clk 0:01:37.4]} 41... Qb7 {[%clk 0:00:59.4]}
42. Bd5 {[%clk 0:01:37.4]} 42... Qb4 {[%clk 0:01:00.4]} 43. Rdd3 {[%clk
0:01:37.4]} 43... Qa3 {[%clk 0:00:58.1]} 44. Rf3 {[%clk 0:01:38]} 44... Rf6
{[%clk 0:00:52.3]} 45. Rxf6 {[%clk 0:01:38.2]} 45... Bxf6 {[%clk 0:00:52.9]} 46.
Rf3 {[%clk 0:01:39.5]} 46... Kg7 {[%clk 0:00:53.8]} 47. h4 {[%clk 0:01:36]}
47... Qb2 {[%clk 0:00:48.4]} 48. Nf1 {[%clk 0:01:36.8]} 48... g5 {[%clk
0:00:49.8]} 49. hxg5 {[%clk 0:01:34.8]} 49... Bxg5 {[%clk 0:00:50.9]} 50. Rf5
{[%clk 0:01:35.6]} 50... Kh6 {[%clk 0:00:47.5]} 51. Nh2 {[%clk 0:01:33]} 51...
Qc2 {[%clk 0:00:31]} 52. Nf3 {[%clk 0:01:32.3]} 52... Be3 {[%clk 0:00:28.9]} 53.
Nh4 {[%clk 0:01:24]} 53... Bg5 {[%clk 0:00:23.2]} 54. Nf3 {[%clk 0:01:21.8]}
54... Bd8 {[%clk 0:00:21.5]} 55. Rf8 {[%clk 0:01:08.7]} 55... Be7 {[%clk
0:00:21.1]} 56. Rf7 {[%clk 0:01:09.2]} 56... Bg5 {[%clk 0:00:22]} 57. Rf5 {[%clk
0:01:05.9]} 57... Be3 {[%clk 0:00:22.6]} 58. Nh4 {[%clk 0:01:06.5]} 58... Bg5
{[%clk 0:00:23.8]} 59. Nf3 {[%clk 0:01:07]} 59... Bd8 {[%clk 0:00:24.9]} 60. Rf8
{[%clk 0:01:07.3]} 60... Be7 {[%clk 0:00:24.6]} 61. Rh8+ {[%clk 0:01:03.2]}
61... Kg7 {[%clk 0:00:22.7]} 62. Rxh5 {[%clk 0:01:01.7]} 62... c4 {[%clk
0:00:24.1]} 63. bxc4 {[%clk 0:00:39]} 63... Qxa4 {[%clk 0:00:24]} 64. c5 {[%clk
0:00:40.6]} 64... dxc5 {[%clk 0:00:19.5]} 65. Nxe5 {[%clk 0:00:37.3]} 65... Qd4
{[%clk 0:00:18.4]} 66. Nc6 {[%clk 0:00:37.5]} 66... Qc3 {[%clk 0:00:16.9]} 67.
Nxe7 {[%clk 0:00:37.1]} 67... a4 {[%clk 0:00:18.2]} 68. Nf5+ {[%clk 0:00:34.8]}
68... Kf8 {[%clk 0:00:09.4]} 69. Ne3 {[%clk 0:00:21.9]} 69... a3 {[%clk
0:00:09.6]} 70. Rf5+ {[%clk 0:00:22]} 70... Ke8 {[%clk 0:00:10.6]} 71. g4 {[%clk
0:00:23.4]} 71... Qb2 {[%clk 0:00:11]} 72. Kg3 {[%clk 0:00:21.1]} 72... Qb8+
{[%clk 0:00:09.9]} 73. Kf3 {[%clk 0:00:21.6]} 73... Qb1 {[%clk 0:00:09.7]} 74.
g5 {[%clk 0:00:21.8]} 74... a2 {[%clk 0:00:10.7]} 75. Bxa2 {[%clk 0:00:22.2]}
75... Qxa2 {[%clk 0:00:12.5]} 76. Rxc5 {[%clk 0:00:23.1]} 76... Qa1 {[%clk
0:00:13]} 77. Rf5 {[%clk 0:00:21.8]} 77... Qh1+ {[%clk 0:00:13.6]} 78. Kf4
{[%clk 0:00:22.9]} 78... Qh2+ {[%clk 0:00:14.1]} 79. Kg4 {[%clk 0:00:24.1]}
79... Qg1+ {[%clk 0:00:12.9]} 80. Kh5 {[%clk 0:00:25.3]} 80... Qh1+ {[%clk
0:00:12]} 81. Kg6 {[%clk 0:00:26.4]} 81... Qxe4 {[%clk 0:00:13]} 82. Kh6 {[%clk
0:00:18.3]} 82... Qh1+ {[%clk 0:00:13.1]} 83. Kg7 {[%clk 0:00:18.5]} 83... Qb7+
{[%clk 0:00:13.9]} 84. Kg8 {[%clk 0:00:19.1]} 84... Qb3+ {[%clk 0:00:13.4]} 85.
Nd5 {[%clk 0:00:17.4]} 85... Qh3 {[%clk 0:00:12.4]} 86. Re5+ {[%clk 0:00:14.2]}
86... Kd8 {[%clk 0:00:13.7]} 87. Nf6 {[%clk 0:00:13.9]} 87... Qc3 {[%clk
0:00:12.9]} 88. Re8+ {[%clk 0:00:12.3]} 88... Kc7 {[%clk 0:00:12.3]} 89. Nd5+
{[%clk 0:00:13.6]} 1-0